bitfinex-derivatives/quotes_BTCF0:USTF0_20250722
["timestamp","ask_amount","ask_price","bid_price","bid_amount"]
[1753166878071,1.20994913,117580.0,117570.0,0.20703265]
[1753166878373,1.20994913,117580.0,117570.0,0.04738]
[1753166878565,1.20994913,117580.0,117570.0,0.09308363]
[1753166879970,1.0151981,117580.0,117570.0,0.04570363]
[1753166880172,1.20994913,117580.0,117570.0,0.04570363]
[1753166884774,1.20994913,117580.0,117570.0,0.09308363]
[1753166885673,1.20994913,117580.0,117570.0,0.04570363]
[1753166886878,0.3670168,117570.0,117560.0,0.09308363]
[1753166887079,1.79396363,117570.0,117560.0,0.11374363]
[1753166888073,1.20896363,117570.0,117560.0,0.20705363]
[1753166888276,1.79396363,117570.0,117560.0,0.27830363]
[1753166888580,1.79396363,117570.0,117560.0,0.27930363]
[1753166889381,1.79396363,117570.0,117560.0,0.14792363]
[1753166890771,1.79396363,117570.0,117560.0,0.15856363]
[1753166892082,1.79396363,117570.0,117560.0,0.27930363]
[1753166892784,1.79396363,117570.0,117560.0,0.44935493]
[1753166892976,1.79396363,117570.0,117560.0,0.27930363]
[1753166894984,1.79408363,117570.0,117560.0,0.44935493]
[1753166895184,1.79408363,117570.0,117560.0,0.27930363]
[1753166897088,1.79400363,117570.0,117560.0,0.27930363]
[1753166898384,1.79400363,117570.0,117560.0,0.2336]
[1753166899389,1.20896363,117570.0,117560.0,0.2336]
[1753166899582,1.79400363,117570.0,117560.0,0.2942601]
[1753166899787,1.79400363,117570.0,117560.0,0.18411]
[1753166899987,1.79400363,117570.0,117560.0,0.11286]
[1753166901288,1.20896363,117570.0,117560.0,0.11286]
[1753166901487,1.79400363,117570.0,117560.0,0.11286]
[1753166901987,1.79400363,117570.0,117560.0,0.18066]
[1753166902592,2.08039943,117570.0,117560.0,0.0616601]
[1753166903090,2.08039943,117570.0,117560.0,0.1104001]
[1753166903589,2.08039943,117570.0,117560.0,0.04974]
[1753166904190,1.79400363,117570.0,117560.0,0.07098]
[1753166904390,1.8024794,117570.0,117560.0,0.07098]
[1753166904594,1.79400363,117570.0,117560.0,0.07098]
[1753166904787,1.79400363,117570.0,117560.0,0.11239]
[1753166904978,1.79400363,117570.0,117560.0,0.27166439]
[1753166905890,1.79400363,117570.0,117560.0,0.20386439]
[1753166906090,1.79400363,117570.0,117560.0,0.15823439]
[1753166906283,1.79400363,117570.0,117560.0,0.11239]
[1753166906485,1.79400363,117570.0,117560.0,0.15824641]
[1753166907391,1.79400363,117570.0,117560.0,0.11239]
[1753166908090,1.80236426,117570.0,117560.0,0.10189]
[1753166909691,1.79400363,117570.0,117560.0,0.10189]
[1753166910093,1.81173921,117570.0,117560.0,0.10189]
[1753166910293,1.81173921,117570.0,117560.0,0.07098]
[1753166910593,2.10677246,117570.0,117560.0,0.09562227]
[1753166911190,1.52173246,117570.0,117560.0,0.09562227]
[1753166911390,2.10677246,117570.0,117560.0,0.09562227]
[1753166912089,1.52173246,117570.0,117560.0,0.27170227]
[1753166912295,1.82037666,117570.0,117560.0,0.27170227]
[1753166912595,1.82037666,117570.0,117560.0,0.15827227]
[1753166912795,1.82037666,117570.0,117560.0,0.11686227]
[1753166913094,2.10677246,117570.0,117560.0,0.09562227]
[1753166914597,2.10677246,117570.0,117560.0,0.04688227]
[1753166915798,2.10677246,117570.0,117560.0,0.09562227]
[1753166916498,2.08903688,117570.0,117560.0,0.04974]
[1753166919000,1.51624528,117570.0,117560.0,0.04974]
[1753166919196,2.08903688,117570.0,117560.0,0.07098]
[1753166919599,1.80264108,117570.0,117560.0,0.10189]
[1753166919798,1.80264108,117570.0,117560.0,0.18019]
[1753166920896,1.80264108,117570.0,117560.0,0.11239]
[1753166921301,1.80264108,117570.0,117560.0,0.22582]
[1753166921498,1.19845363,117570.0,117560.0,0.2864801]
[1753166921796,0.5308368,117570.0,117560.0,0.4565313]
[1753166922201,0.1700368,117570.0,117560.0,1.0415313]
[1753166923494,0.6895,117580.0,117570.0,0.3948568]
[1753166923696,0.2125421,117580.0,117570.0,0.3948568]
[1753166923891,0.1700356,117580.0,117570.0,0.7655169]
[1753166924099,0.99502839,117590.0,117580.0,0.3733623]
[1753166924300,1.01274182,117590.0,117580.0,1.02594512]
[1753166925501,1.01574182,117590.0,117580.0,1.02594512]
[1753166926304,1.08635839,117590.0,117580.0,1.02594512]
[1753166926702,1.08635839,117590.0,117580.0,0.85592282]
[1753166926904,1.08635839,117590.0,117580.0,0.8707301]
[1753166927403,1.08635839,117590.0,117580.0,1.0407524]
[1753166928199,1.08635839,117590.0,117580.0,0.8707301]
[1753166928802,1.08635839,117590.0,117580.0,0.4557524]
[1753166929002,1.11882839,117590.0,117580.0,0.74334981]
[1753166929203,1.11882839,117590.0,117580.0,0.15834981]
[1753166930100,1.70374839,117590.0,117580.0,0.44088211]
[1753166930802,1.11882839,117590.0,117580.0,0.44088211]
[1753166931003,1.10985839,117590.0,117580.0,0.44088211]
[1753166931203,1.08735839,117590.0,117580.0,0.44088211]
[1753166932916,1.08735839,117590.0,117580.0,0.44946027]
[1753166934910,1.08735839,117590.0,117580.0,0.44088211]
[1753166936417,1.08735839,117590.0,117580.0,0.44088221]
[1753166937112,1.10985839,117590.0,117580.0,0.44088221]
[1753166937606,1.08735839,117590.0,117580.0,0.44088221]
[1753166938211,1.28210942,117590.0,117580.0,0.44088221]
[1753166938418,0.9062239,117590.0,117580.0,0.44088221]
[1753166938618,1.0666839,117590.0,117580.0,0.45838353]
[1753166939011,1.0241797,117590.0,117580.0,0.45838353]
[1753166939517,1.0137897,117590.0,117580.0,0.45838353]
[1753166939708,1.0137897,117590.0,117580.0,0.41259372]
[1753166939912,1.0137897,117590.0,117580.0,0.47325382]
[1753166940313,0.5750497,117590.0,117580.0,0.47325382]
[1753166940514,0.004,117590.0,117580.0,1.14405382]
[1753166940714,0.01918598,117600.0,117590.0,0.2562079]
[1753166940914,0.09140331,117620.0,117610.0,0.395049]
[1753166941125,0.07213,117630.0,117620.0,0.3950345]
[1753166941309,0.7336639,117650.0,117640.0,0.3950056]
[1753166941510,0.3303812,117650.0,117640.0,0.3950056]
[1753166941720,0.616777,117650.0,117640.0,0.3950056]
[1753166942218,0.616777,117650.0,117640.0,0.7558056]
[1753166942821,0.573997,117650.0,117640.0,0.7558056]
[1753166943013,0.574997,117650.0,117640.0,0.7558056]
[1753166943614,0.575997,117650.0,117640.0,0.7558056]
[1753166944422,0.575997,117650.0,117640.0,0.76449181]
[1753166944724,0.618777,117650.0,117640.0,0.7558056]
[1753166946825,0.618777,117650.0,117640.0,0.58587]
[1753166947122,0.618777,117650.0,117640.0,0.63365]
[1753166947123,1.20579803,117650.0,117640.0,0.63365]
[1753166947419,0.3618656,117640.0,117630.0,0.67312279]
[1753166947625,1.49020823,117640.0,117630.0,0.67312279]
[1753166947826,1.49020823,117640.0,117630.0,0.67308279]
[1753166949625,1.49020823,117640.0,117630.0,0.85394289]
[1753166949926,1.49020823,117640.0,117630.0,0.88517289]
[1753166950120,1.20381243,117640.0,117630.0,0.95362289]
[1753166950525,1.49020823,117640.0,117630.0,0.71522279]
[1753166950727,1.20381243,117640.0,117630.0,0.71522279]
[1753166950919,1.20381243,117640.0,117630.0,0.88517369]
[1753166951227,1.20381243,117640.0,117630.0,0.95362369]
[1753166951420,0.9775914,117640.0,117630.0,0.99768369]
[1753166951628,0.5740114,117640.0,117630.0,0.99768369]
[1753166951926,0.4040758,117640.0,117630.0,1.35848369]
[1753166952126,1.0200705,117650.0,117640.0,0.3950067]
[1753166952325,1.21482153,117650.0,117640.0,0.3950067]
[1753166952721,0.7336747,117650.0,117640.0,0.3950067]
[1753166952919,0.9451995,117650.0,117640.0,0.3950067]
[1753166953128,0.11768,117650.0,117640.0,0.7558067]
[1753166953429,0.5759992,117650.0,117640.0,0.7558067]
[1753166953628,0.2999934,117650.0,117640.0,0.7558067]
[1753166953832,0.6187792,117650.0,117640.0,0.7558067]
[1753166954728,0.002,117650.0,117640.0,0.7558067]
[1753166955223,0.1719238,117650.0,117640.0,0.7558067]
[1753166955429,0.002,117650.0,117640.0,0.7558067]
[1753166955825,0.1719238,117650.0,117640.0,0.7558067]
[1753166956433,0.002,117650.0,117640.0,0.7558067]
[1753166956931,0.1719239,117650.0,117640.0,0.7558067]
[1753166959534,0.2413739,117650.0,117640.0,0.7558067]
[1753166959733,0.1719239,117650.0,117640.0,0.7558067]
[1753166960228,0.002,117650.0,117640.0,0.7558067]
[1753166961032,0.002,117650.0,117640.0,1.0422025]
[1753166961428,0.002,117650.0,117640.0,1.21220249]
[1753166961630,0.002,117650.0,117640.0,1.56220249]
[1753166961838,0.002,117650.0,117640.0,1.21220249]
[1753166962026,0.002,117650.0,117640.0,1.25790562]
[1753166962527,0.1719239,117650.0,117640.0,1.25790562]
[1753166963236,0.002,117650.0,117640.0,1.25790562]
[1753166964337,0.002,117650.0,117640.0,1.270416]
[1753166965330,0.001,117650.0,117640.0,1.270416]
[1753166965538,0.2548794,117660.0,117650.0,0.3752639]
[1753166965733,0.2548794,117660.0,117650.0,0.9818539]
[1753166965933,0.6569352,117660.0,117650.0,0.9818539]
[1753166966231,0.6569352,117660.0,117650.0,0.99428906]
[1753166966635,0.6579352,117660.0,117650.0,0.99428906]
[1753166967038,0.2558794,117660.0,117650.0,0.9818539]
[1753166967234,0.2133991,117660.0,117650.0,1.04000037]
[1753166967538,0.1709215,117660.0,117650.0,1.32639617]
[1753166968537,0.1719215,117660.0,117650.0,1.32639617]
[1753166968735,0.002,117660.0,117650.0,1.32639617]
[1753166969236,0.002,117660.0,117650.0,1.28069304]
[1753166969535,0.1719095,117660.0,117650.0,1.28069304]
[1753166970036,0.002,117660.0,117650.0,1.62069304]
[1753166970332,0.001,117660.0,117650.0,1.28069304]
[1753166970639,0.001,117660.0,117650.0,1.63069304]
[1753166970840,0.001,117660.0,117650.0,1.34135314]
[1753166971137,0.1699095,117660.0,117650.0,1.34135314]
[1753166971337,0.6156564,117670.0,117660.0,0.27296442]
[1753166971536,0.81040743,117670.0,117660.0,0.47065402]
[1753166971937,0.87985743,117670.0,117660.0,0.47065402]
[1753166972139,0.92606743,117670.0,117660.0,0.47065402]
[1753166972743,0.92806743,117670.0,117660.0,0.47065402]
[1753166973048,0.92806743,117670.0,117660.0,0.47067358]
[1753166973340,0.92806743,117670.0,117660.0,0.45821068]
[1753166973940,0.92806743,117670.0,117660.0,0.47081909]
[1753166974738,0.171895,117670.0,117660.0,1.11801489]
[1753166975042,0.002,117670.0,117660.0,1.39236863]
[1753166975242,0.6883104,117690.0,117680.0,0.3951306]
[1753166975433,0.6883104,117690.0,117680.0,1.2678864]
[1753166975434,0.2855261,117690.0,117680.0,1.2678864]
[1753166975633,0.6139019,117690.0,117680.0,0.9814906]
[1753166975939,0.6139019,117690.0,117680.0,1.02710581]
[1753166976335,0.6179019,117690.0,117680.0,0.9814906]
[1753166976635,0.6179019,117690.0,117680.0,1.02710581]
[1753166976842,0.6139019,117690.0,117680.0,0.9814906]
[1753166977144,0.6169019,117690.0,117680.0,1.0487723]
[1753166977443,0.6179019,117690.0,117680.0,1.0487723]
[1753166977838,0.4480358,117690.0,117680.0,1.0487723]
[1753166978042,0.617902,117690.0,117680.0,1.0487723]
[1753166980538,0.506472,117690.0,117680.0,1.0487723]
[1753166981040,0.575922,117690.0,117680.0,1.0487723]
[1753166982046,0.77067303,117690.0,117680.0,1.0487723]
[1753166982344,0.77067303,117690.0,117680.0,1.09438751]
[1753166982540,0.80206303,117690.0,117680.0,1.09438751]
[1753166983638,0.80206303,117690.0,117680.0,1.45518751]
[1753166986545,0.80006303,117690.0,117680.0,1.45518751]
[1753166988047,0.80006303,117690.0,117680.0,0.86882751]
[1753166988242,0.80006303,117690.0,117680.0,1.45418751]
[1753166989650,0.51366723,117690.0,117680.0,1.45418751]
[1753166990546,0.51366723,117690.0,117680.0,1.09338751]
[1753166990547,0.81039303,117690.0,117680.0,1.09338751]
[1753166991545,0.81039303,117690.0,117680.0,0.80679691]
[1753166991546,1.20130303,117690.0,117680.0,0.80679691]
[1753166991752,1.20130303,117690.0,117680.0,0.15455521]
[1753166991943,1.20130303,117690.0,117680.0,0.65435]
[1753166992144,1.20130303,117690.0,117680.0,0.69996521]
[1753166992345,1.20130303,117690.0,117680.0,0.91308581]
[1753166992549,1.20130303,117690.0,117680.0,1.02253581]
[1753166993144,1.22048422,117690.0,117680.0,1.02253581]
[1753166997345,1.22048422,117690.0,117680.0,0.9769206]
[1753166998147,0.11766,117690.0,117680.0,1.6241164]
[1753166998346,0.06555,117700.0,117690.0,0.3903062]
[1753166998548,0.47262,117710.0,117700.0,0.3902918]
[1753166998750,0.30657103,117710.0,117700.0,1.38207225]
[1753166998946,0.58675069,117720.0,117710.0,0.3902773]
[1753166999152,0.3584161,117720.0,117710.0,0.43597775]
[1753166999351,0.82215172,117720.0,117710.0,0.79677775]
[1753166999858,0.82215172,117720.0,117710.0,0.43597775]
[1753167000151,0.82215172,117720.0,117710.0,0.43597785]
[1753167000347,0.84665172,117720.0,117710.0,0.3902774]
[1753167000553,0.85426172,117720.0,117710.0,0.4509375]
[1753167000754,0.85426172,117720.0,117710.0,0.3873675]
[1753167001055,0.85426172,117720.0,117710.0,0.3902774]
[1753167001454,1.21506172,117720.0,117710.0,0.3902774]
[1753167001855,1.21806172,117720.0,117710.0,0.3902774]
[1753167002154,1.21806172,117720.0,117710.0,0.22044]
[1753167002357,1.21806172,117720.0,117710.0,0.4359125]
[1753167002952,1.21806172,117720.0,117710.0,0.3902774]
[1753167002953,0.85726172,117720.0,117710.0,0.3902774]
[1753167003152,0.84965172,117720.0,117710.0,0.3902774]
[1753167003353,0.85726172,117720.0,117710.0,0.26605844]
[1753167003551,1.21806172,117720.0,117710.0,0.15660844]
[1753167003858,1.21806172,117720.0,117710.0,0.09396844]
[1753167004048,1.21806172,117720.0,117710.0,0.67908844]
[1753167004251,1.50445752,117720.0,117710.0,0.67908844]
[1753167004452,1.50445752,117720.0,117710.0,0.04561844]
[1753167004657,1.50445752,117720.0,117710.0,0.63073844]
[1753167004858,0.2567574,117710.0,117700.0,0.6963887]
[1753167005153,1.19436423,117710.0,117700.0,0.6963887]
[1753167005853,1.19636423,117710.0,117700.0,0.6963887]
[1753167006058,1.19736423,117710.0,117700.0,0.6963887]
[1753167006456,1.19736423,117710.0,117700.0,0.6480387]
[1753167006759,1.19736423,117710.0,117700.0,0.6478787]
[1753167008761,1.19736423,117710.0,117700.0,0.6962287]
[1753167009265,1.19736423,117710.0,117700.0,0.6478787]
[1753167009962,0.3435167,117700.0,117690.0,0.0606601]
[1753167010163,0.2816862,117690.0,117680.0,0.8829698]
[1753167010352,1.12363303,117690.0,117680.0,0.8829698]
[1753167010555,1.12363303,117690.0,117680.0,0.9262098]
[1753167011156,1.12363303,117690.0,117680.0,0.9897798]
[1753167011357,1.12363303,117690.0,117680.0,1.0356598]
[1753167011662,1.12363303,117690.0,117680.0,1.0366598]
[1753167011865,1.12363303,117690.0,117680.0,0.98822308]
[1753167012263,1.12363303,117690.0,117680.0,0.9759997]
[1753167013161,1.12363303,117690.0,117680.0,0.80612]
[1753167013359,1.12363303,117690.0,117680.0,0.1726501]
[1753167013567,1.12363303,117690.0,117680.0,0.69667]
[1753167014266,1.12363303,117690.0,117680.0,0.65343]
[1753167014566,1.12363303,117690.0,117680.0,0.65251]
[1753167015365,1.12363303,117690.0,117680.0,0.8223906]
[1753167015666,1.12663303,117690.0,117680.0,0.8223906]
[1753167015867,1.12663303,117690.0,117680.0,0.8637706]
[1753167016068,1.12663303,117690.0,117680.0,0.9306806]
[1753167016268,1.12663303,117690.0,117680.0,0.9746806]
[1753167018057,1.12463303,117690.0,117680.0,0.9746806]
[1753167018970,0.83823723,117690.0,117680.0,0.9746806]
[1753167019169,1.05808303,117690.0,117680.0,0.9746806]
[1753167019372,0.77168723,117690.0,117680.0,0.9746806]
[1753167020772,0.83612723,117690.0,117680.0,0.9746806]
[1753167021072,0.76172303,117690.0,117680.0,0.9746806]
[1753167021472,0.566972,117690.0,117680.0,0.9746806]
[1753167021773,0.2805762,117690.0,117680.0,1.0353407]
[1753167022468,1.0088966,117700.0,117690.0,0.3673862]
[1753167022774,1.20364763,117700.0,117690.0,0.3862362]
[1753167024767,1.20664763,117700.0,117690.0,0.3862362]
[1753167026073,0.93215339,117720.0,117710.0,0.1698373]
[1753167026074,0.48639759,117720.0,117710.0,0.1698373]
[1753167026372,0.86526542,117720.0,117710.0,0.9707673]
[1753167026575,1.22606542,117720.0,117710.0,0.9707673]
[1753167027168,1.03131439,117720.0,117710.0,1.0314274]
[1753167027363,1.22606542,117720.0,117710.0,1.0314274]
[1753167027567,0.86526542,117720.0,117710.0,1.0314274]
[1753167028575,0.86726542,117720.0,117710.0,1.0314274]
[1753167028970,1.22806542,117720.0,117710.0,0.7946801]
[1753167029165,1.22806542,117720.0,117710.0,1.0314275]
[1753167030376,1.51446122,117720.0,117710.0,0.7411801]
[1753167030577,1.51446122,117720.0,117710.0,0.68052]
[1753167030775,1.51446122,117720.0,117710.0,0.68998]
[1753167030977,1.22806542,117720.0,117710.0,0.9707273]
[1753167031275,1.51446122,117720.0,117710.0,0.80089]
[1753167031578,1.51446122,117720.0,117710.0,0.62975]
[1753167032570,0.2805073,117710.0,117700.0,0.1058901]
[1753167032775,1.12245413,117710.0,117700.0,0.0606601]
[1753167032970,0.2160817,117700.0,117690.0,0.6451801]
[1753167033280,1.12246853,117700.0,117690.0,0.6904101]
[1753167033578,1.12246853,117700.0,117690.0,0.7092601]
[1753167033979,1.12246853,117700.0,117690.0,0.6486]
[1753167034179,1.12246853,117700.0,117690.0,0.7092601]
[1753167034374,1.12246853,117700.0,117690.0,0.69424318]
[1753167035481,1.12246853,117700.0,117690.0,0.69524318]
[1753167037581,1.12246853,117700.0,117690.0,0.69424318]
[1753167037781,1.12346853,117700.0,117690.0,0.69424318]
[1753167039081,1.12346853,117700.0,117690.0,0.70370318]
[1753167039282,1.12346853,117700.0,117690.0,0.73562318]
[1753167042483,1.12346853,117700.0,117690.0,0.84653318]
[1753167043475,1.12346853,117700.0,117690.0,1.01639938]
[1753167043681,0.83707273,117700.0,117690.0,1.01639938]
[1753167043988,0.9287175,117700.0,117690.0,1.01639938]
[1753167044181,1.12346853,117700.0,117690.0,1.01639938]
[1753167046384,1.12346853,117700.0,117690.0,0.9707562]
[1753167046385,0.5679175,117700.0,117690.0,0.9707562]
[1753167046880,0.1708517,117700.0,117690.0,0.9707562]
[1753167047588,0.4572475,117700.0,117690.0,0.9707562]
[1753167047890,0.4562475,117700.0,117690.0,0.9707562]
[1753167048091,0.1708517,117700.0,117690.0,1.0314163]
[1753167048390,0.4572475,117700.0,117690.0,1.0314163]
[1753167048590,0.4562475,117700.0,117690.0,1.0324163]
[1753167050285,0.1698517,117700.0,117690.0,1.3325562]
[1753167050491,0.1698517,117700.0,117690.0,1.3932163]
[1753167050690,0.1698517,117700.0,117690.0,1.40600016]
[1753167050887,0.1698517,117700.0,117690.0,1.40599994]
[1753167052193,0.5656275,117700.0,117690.0,1.04519994]
[1753167052395,0.5656275,117700.0,117690.0,1.0324163]
[1753167053196,0.9264275,117700.0,117690.0,1.0323763]
[1753167053392,1.12117853,117700.0,117690.0,0.2780301]
[1753167053593,1.12117853,117700.0,117690.0,0.8625101]
[1753167053794,1.12117853,117700.0,117690.0,1.0323763]
[1753167054093,1.12117853,117700.0,117690.0,1.0323363]
[1753167054289,1.12117853,117700.0,117690.0,0.9716762]
[1753167054489,1.12117853,117700.0,117690.0,0.80181]
[1753167055789,1.12117853,117700.0,117690.0,0.6909]
[1753167056793,1.12117853,117700.0,117690.0,0.10646]
[1753167056999,1.12117853,117700.0,117690.0,0.7101801]
[1753167057198,1.12117853,117700.0,117690.0,0.64952]
[1753167057700,1.12117853,117700.0,117690.0,0.06508]
[1753167058294,1.12117853,117700.0,117690.0,0.1107411]
[1753167059696,1.12117853,117700.0,117690.0,0.1504511]
[1753167060905,1.12117853,117700.0,117690.0,0.2189211]
[1753167061104,1.12317853,117700.0,117690.0,0.2179211]
[1753167061305,0.83678273,117700.0,117690.0,0.2179211]
[1753167061514,1.12317853,117700.0,117690.0,0.2629311]
[1753167061709,1.12317853,117700.0,117690.0,0.4327972]
[1753167062112,1.12317853,117700.0,117690.0,0.3871361]
[1753167063308,1.12217853,117700.0,117690.0,0.4477962]
[1753167064213,1.12217853,117700.0,117690.0,0.2779301]
[1753167064714,1.12217853,117700.0,117690.0,0.4477963]
[1753167066314,1.12217853,117700.0,117690.0,0.3871362]
[1753167067316,1.12217853,117700.0,117690.0,0.21727]
[1753167067813,1.12217853,117700.0,117690.0,0.3871361]
[1753167068011,1.12217853,117700.0,117690.0,0.21727]
[1753167070314,1.13062896,117700.0,117690.0,0.21727]
[1753167070717,1.12217853,117700.0,117690.0,0.21727]
[1753167071217,1.12217853,117700.0,117690.0,0.10379]
[1753167071612,1.12217853,117700.0,117690.0,0.2736562]
[1753167071813,1.12217853,117700.0,117690.0,0.3871362]
[1753167072007,1.12217853,117700.0,117690.0,0.21727]
[1753167073108,1.12217853,117700.0,117690.0,0.10379]
[1753167073312,1.12217853,117700.0,117690.0,0.06408]
[1753167073913,1.12217853,117700.0,117690.0,0.1247401]
[1753167074113,1.12217853,117700.0,117690.0,0.04523]
[1753167074512,1.12217853,117700.0,117690.0,0.09093562]
[1753167074813,1.12217853,117700.0,117690.0,0.11080562]
[1753167075419,1.12217853,117700.0,117690.0,0.09093562]
[1753167076121,1.12217853,117700.0,117690.0,0.11080562]
[1753167077117,0.83578273,117700.0,117690.0,0.11080562]
[1753167077315,1.12217853,117700.0,117690.0,0.19365562]
[1753167077518,1.70985853,117700.0,117690.0,0.25488562]
[1753167077823,1.12217853,117700.0,117690.0,0.25488562]
[1753167081226,1.12217853,117700.0,117690.0,0.20918]
[1753167083227,1.12217853,117700.0,117690.0,0.04523]
[1753167083424,0.2142962,117690.0,117680.0,0.1285301]
[1753167083625,1.11836303,117690.0,117680.0,0.7164501]
[1753167083827,1.11836303,117690.0,117680.0,0.1285301]
[1753167084415,1.11836303,117690.0,117680.0,0.06787]
[1753167084616,1.11836303,117690.0,117680.0,0.16951]
[1753167084820,1.11836303,117690.0,117680.0,0.21195]
[1753167085826,1.11836303,117690.0,117680.0,0.21295]
[1753167086328,1.11936303,117690.0,117680.0,0.21195]
[1753167086623,1.11936303,117690.0,117680.0,0.06787]
[1753167086829,1.11936303,117690.0,117680.0,0.1285301]
[1753167087029,0.83296723,117690.0,117680.0,0.1285301]
[1753167087230,1.11936303,117690.0,117680.0,0.1285301]
[1753167088230,1.11936303,117690.0,117680.0,0.1689401]
[1753167088430,1.11936303,117690.0,117680.0,0.21195]
[1753167089325,0.83296723,117690.0,117680.0,0.3818305]
[1753167089526,0.924612,117690.0,117680.0,0.3818305]
[1753167091940,0.924612,117690.0,117680.0,0.21195]
[1753167092129,0.924612,117690.0,117680.0,0.10828]
[1753167092432,1.11936303,117690.0,117680.0,0.10828]
[1753167093828,1.11936303,117690.0,117680.0,0.16951]
[1753167094533,1.11936303,117690.0,117680.0,0.10828]
[1753167096335,1.11936303,117690.0,117680.0,0.06787]
[1753167096534,1.70784303,117690.0,117680.0,0.06787]
[1753167096731,1.70784303,117690.0,117680.0,0.048]
[1753167097130,1.70784303,117690.0,117680.0,0.06787]
[1753167098235,1.70784303,117690.0,117680.0,0.2377505]
[1753167098435,1.70784303,117690.0,117680.0,0.2682305]
[1753167098637,1.70784303,117690.0,117680.0,0.2781605]
[1753167099639,1.42144723,117690.0,117680.0,0.29528958]
[1753167099936,1.42144723,117690.0,117680.0,0.39895958]
[1753167099937,1.70784303,117690.0,117680.0,0.39895958]
[1753167100133,0.909512,117690.0,117680.0,0.39895958]
[1753167100334,1.10426303,117690.0,117680.0,0.39895958]
[1753167101134,0.81786723,117690.0,117680.0,0.39895958]
[1753167101433,0.2623162,117690.0,117680.0,1.12215915]
[1753167101641,0.2623162,117690.0,117680.0,1.10711245]
[1753167101836,0.2623162,117690.0,117680.0,0.82071665]
[1753167102540,0.2613162,117690.0,117680.0,0.82171665]
[1753167103740,0.2613162,117690.0,117680.0,0.76075958]
[1753167105240,0.2613162,117690.0,117680.0,0.8216834]
[1753167105841,0.2613162,117690.0,117680.0,0.76075958]
[1753167106243,0.2613162,117690.0,117680.0,0.82167597]
[1753167106435,0.75085971,117700.0,117680.0,0.82167597]
[1753167106636,0.69604071,117700.0,117690.0,1.02779259]
[1753167106835,0.1698517,117700.0,117690.0,1.04549619]
[1753167107040,0.1698517,117700.0,117690.0,1.37913199]
[1753167107445,0.1698517,117700.0,117690.0,1.44158199]
[1753167107936,0.1698517,117700.0,117690.0,1.45666937]
[1753167108142,1.0061453,117710.0,117700.0,0.37642247]
[1753167108336,1.0061453,117710.0,117700.0,0.4559864]
[1753167108540,1.0061453,117710.0,117700.0,0.39510247]
[1753167108740,0.7197495,117710.0,117700.0,0.39510247]
[1753167108935,1.0061453,117710.0,117700.0,0.39510247]
[1753167109140,1.20089633,117710.0,117700.0,0.47110624]
[1753167109443,1.0061453,117710.0,117700.0,0.47110624]
[1753167109643,0.7197495,117710.0,117700.0,0.47110624]
[1753167110847,0.1698489,117710.0,117700.0,0.74233688]
[1753167111049,0.1718489,117710.0,117700.0,0.74233688]
[1753167111449,0.002,117710.0,117700.0,1.10313688]
[1753167111849,0.1718372,117710.0,117700.0,1.10313688]
[1753167112337,0.1718372,117710.0,117700.0,0.81674108]
[1753167112842,0.2760172,117710.0,117700.0,0.39510247]
[1753167113041,0.562413,117710.0,117700.0,0.45589042]
[1753167113547,0.562413,117710.0,117700.0,0.39510247]
[1753167114252,0.2760172,117710.0,117700.0,0.75590247]
[1753167115250,0.2760172,117710.0,117700.0,0.81664612]
[1753167115452,0.10618,117710.0,117700.0,1.11304612]
[1753167115748,0.002,117710.0,117700.0,1.39944192]
[1753167116647,0.2122796,117720.0,117710.0,0.2497972]
[1753167116852,0.2122796,117720.0,117710.0,0.9660072]
[1753167117243,0.2760596,117720.0,117710.0,0.9660072]
[1753167117450,0.6559271,117730.0,117720.0,0.1698228]
[1753167117749,0.2526716,117730.0,117720.0,0.72529225]
[1753167117944,0.2526716,117730.0,117720.0,1.08609225]
[1753167118147,0.3164516,117730.0,117720.0,1.0947452]
[1753167118345,0.3164516,117730.0,117720.0,0.8083494]
[1753167118646,0.3214516,117730.0,117720.0,0.8083494]
[1753167119746,0.005,117730.0,117720.0,1.05147454]
[1753167119948,0.1748084,117730.0,117720.0,1.11221819]
[1753167120153,0.1708084,117730.0,117720.0,1.11221819]
[1753167120453,0.1708084,117730.0,117720.0,0.8925068]
[1753167120746,0.5613842,117730.0,117720.0,0.47096315]
[1753167120949,0.5613842,117730.0,117720.0,1.05912315]
[1753167121151,0.2749884,117730.0,117720.0,1.05912315]
[1753167121355,0.5613842,117730.0,117720.0,1.05912315]
[1753167121646,0.5306056,117740.0,117720.0,1.05912315]
[1753167121647,0.06378,117740.0,117730.0,0.1698084]
[1753167121854,0.7196649,117750.0,117740.0,0.39516979]
[1753167122053,0.84001173,117750.0,117740.0,1.02886123]
[1753167122450,0.10418,117750.0,117740.0,1.38966123]
[1753167122953,0.2739596,117750.0,117740.0,1.34416979]
[1753167123151,0.2769596,117750.0,117740.0,1.38962301]
[1753167123352,0.9241554,117750.0,117740.0,1.02882301]
[1753167123855,0.6377596,117750.0,117740.0,0.98336979]
[1753167124052,0.003,117750.0,117740.0,1.63056559]
[1753167124262,0.1727796,117750.0,117740.0,1.63056559]
[1753167124648,0.1717796,117750.0,117740.0,1.63056559]
[1753167126756,0.2355596,117750.0,117740.0,1.34416979]
[1753167126948,0.2355596,117750.0,117740.0,1.63056559]
[1753167127454,0.2355596,117750.0,117740.0,1.38957585]
[1753167127656,0.2759596,117750.0,117740.0,1.38957585]
[1753167128754,0.5623554,117750.0,117740.0,1.38957585]
[1753167128957,0.5623554,117750.0,117740.0,1.02877585]
[1753167129353,0.2759596,117750.0,117740.0,1.02877585]
[1753167129859,0.5623554,117750.0,117740.0,1.02877585]
[1753167130758,0.6367596,117750.0,117740.0,0.27078185]
[1753167130959,0.9231554,117750.0,117740.0,1.02897725]
[1753167131259,1.11790643,117750.0,117740.0,1.02897725]
[1753167132658,0.83151063,117750.0,117740.0,1.02897725]
[1753167132848,1.11790643,117750.0,117740.0,1.02897725]
[1753167134155,0.83151063,117750.0,117740.0,1.02897725]
[1753167134359,0.2759596,117750.0,117740.0,1.31537305]
[1753167134855,0.10618,117750.0,117740.0,1.31537305]
[1753167135255,0.275961,117750.0,117740.0,1.31537305]
[1753167136454,0.275961,117750.0,117740.0,1.02897725]
[1753167137060,0.47071203,117750.0,117740.0,1.02897725]
[1753167137957,0.47071203,117750.0,117740.0,1.34437119]
[1753167139062,0.75710783,117750.0,117740.0,1.34437119]
[1753167139557,0.47071203,117750.0,117740.0,1.34437119]
[1753167140060,0.275961,117750.0,117740.0,1.34437119]
[1753167140361,0.47071203,117750.0,117740.0,1.34437119]
[1753167141461,0.47071203,117750.0,117740.0,1.63076699]
[1753167141861,0.47071203,117750.0,117740.0,1.34437119]
[1753167142062,0.47071203,117750.0,117740.0,1.63076699]
[1753167142664,0.47071203,117750.0,117740.0,1.63036699]
[1753167143061,0.46871203,117750.0,117740.0,1.63036699]
[1753167143261,0.46871203,117750.0,117740.0,1.63136699]
[1753167145161,0.42831203,117750.0,117740.0,1.63136699]
[1753167145366,0.36453203,117750.0,117740.0,1.63136699]